bitfinex-derivatives/quotes_SOLF0:USTF0_20241002
["timestamp","ask_amount","ask_price","bid_price","bid_amount"]
[1727909103730,16.73,140.97,140.93,0.12502]
[1727909104441,14.4381,140.94,140.93,0.12502]
[1727909105726,3.5481,140.94,140.93,0.12502]
[1727909106328,19.6824,140.96,140.87,0.12502]
[1727909106542,17.05,140.96,140.88,3.47833924]
[1727909106732,0.12502,140.99,140.92,17.05]
[1727909106933,3.5473,140.98,140.92,17.05]
[1727909107331,3.5473,140.98,140.94,3.5479]
[1727909107531,3.5475,140.97,140.92,17.05]
[1727909107726,5.84,140.98,140.92,17.05]
[1727909107930,5.84,140.98,140.93,3.5481]
[1727909108130,5.84,140.98,140.92,17.05]
[1727909108433,5.84,140.98,140.92,20.5986]
[1727909108634,3.5477,140.96,140.92,17.05]
[1727909110340,3.5477,140.96,140.93,3.5483]
[1727909111835,3.5475,140.97,140.94,3.5481]
[1727909112039,0.12502,140.99,140.96,17.05]
[1727909112255,0.12502,140.99,140.97,17.05]
[1727909112735,0.12502,140.99,140.98,3.5471]
[1727909118345,0.12502,140.99,140.96,17.05]
[1727909118555,3.67182,140.99,140.96,20.5974]
[1727909119151,3.67182,140.99,140.97,3.5473]
[1727909119737,3.67182,140.99,140.95,7.12602771]
[1727909119738,3.5476,140.96,140.95,7.12602771]
[1727909119948,5.84,140.98,140.9,17.05]
[1727909120144,22.89,140.98,140.9,17.05]
[1727909120349,22.89,140.98,140.92,3.5485]
[1727909120847,24.2143,140.98,140.92,3.5485]
[1727909121047,18.3743,140.98,140.91,7.11781751]
[1727909121351,5.84,140.97,140.92,17.05]
[1727909121744,3.5472,140.98,140.95,3.5477]
[1727909121949,9.3872,140.98,140.95,3.5477]
[1727909123040,3.5478,140.96,140.93,3.5481]
[1727909123240,5.84,140.98,140.91,7.11631757]
[1727909123241,22.89,140.98,140.91,7.11631757]
[1727909123439,22.89,140.98,140.89,7.11631757]
[1727909123440,17.05,140.95,140.89,7.11631757]
[1727909123644,17.05,140.95,140.88,7.11631757]
[1727909123645,5.84,140.94,140.88,7.11631757]
[1727909123849,5.84,140.94,140.87,0.12502]
[1727909124252,21.1449,140.97,140.87,24.29414871]
[1727909124551,5.84,140.96,140.89,17.05]
[1727909124844,5.84,140.96,140.92,3.5486]
[1727909124845,3.548,140.95,140.92,3.5486]
[1727909125348,5.84,140.96,140.93,3.5481]
[1727909126259,5.84,140.96,140.92,3.5485]
[1727909126749,3.5479,140.95,140.92,3.5485]
[1727909127864,9.3877,140.96,140.92,3.5485]
[1727909128163,5.84,140.96,140.93,3.5483]
[1727909128461,4.0949,140.97,140.9,7.11502714]
[1727909128660,0.12502,140.99,140.93,17.05]
[1727909128845,0.12502,140.99,140.97,17.05]
[1727909129045,0.12502,140.99,140.98,3.5471]
[1727909129361,0.12502,140.99,140.98,20.5971]
[1727909134362,1.12502,141.05,140.98,17.05]
[1727909134564,1.12502,141.05,141.01,17.05]
[1727909134763,1.12502,141.05,141.0,5.84]
[1727909134948,1.12502,141.05,141.01,3.5462]
[1727909134949,3.5457,141.04,141.01,3.5462]
[1727909135558,3.5457,141.04,141.0,5.84]
[1727909135961,3.5457,141.04,141.01,3.5463]
[1727909136366,1.12502,141.05,141.0,5.84]
[1727909136661,4.67052,141.05,141.02,3.546]
[1727909140159,3.546,141.03,141.0,9.3864]
[1727909140464,3.546,141.03,141.0,3.5464]
[1727909140856,3.546,141.03,141.01,3.5463]
[1727909142459,3.546,141.03,141.0,3.5465]
[1727909143568,3.546,141.03,141.01,3.5463]
[1727909145572,1.12502,141.05,141.0,17.05]
[1727909145761,1.12502,141.05,141.03,17.05]
[1727909146266,1.12502,141.05,141.04,3.5456]
[1727909150373,4.67032,141.05,141.03,3.5458]
[1727909150574,1.12502,141.05,141.03,3.5458]
[1727909150776,1.12502,141.05,141.02,22.87]
[1727909151078,1.12502,141.05,141.04,3.5456]
[1727909157589,1.12502,141.05,141.04,14.4356]
[1727909158385,1.12502,141.05,141.02,5.82]
[1727909158580,1.12502,141.05,141.02,14.436]
[1727909158780,1.12502,141.05,141.02,10.89]
[1727909158980,10.89,141.04,140.97,9.9263]
[1727909159283,3.5462,141.02,140.99,14.4366]
[1727909160379,3.5462,141.02,140.97,9.9263]
[1727909160380,1.12502,141.05,140.97,10.89]
[1727909160685,1.12502,141.05,141.02,10.89]
[1727909160881,1.12502,141.05,141.04,3.5456]
[1727909161386,1.12502,141.05,141.04,14.4356]
[1727909161693,1.12502,141.05,141.04,3.5456]
[1727909163892,1.12502,141.05,141.03,17.01]
[1727909164092,1.12502,141.05,141.03,3.5457]
[1727909164293,1.12502,141.05,141.01,17.01]
[1727909164498,1.12502,141.05,141.0,3.5464]
[1727909164499,3.5461,141.02,141.0,3.5464]
[1727909164796,3.5461,141.02,140.97,22.83]
[1727909164996,1.12502,141.05,140.97,22.83]
[1727909165593,1.12502,141.05,141.01,17.01]
[1727909165893,1.12502,141.05,141.01,22.83]
[1727909166098,1.12502,141.05,141.03,17.01]
[1727909166301,1.12502,141.05,141.04,3.5456]
[1727909167108,1.12502,141.05,141.02,3.5459]
[1727909167307,1.12502,141.05,141.01,22.83]
[1727909168302,1.12502,141.05,141.04,3.5456]
[1727909172803,4.67042,141.05,141.02,3.5458]
[1727909173202,4.67042,141.05,141.01,22.83]
[1727909173403,1.12502,141.05,141.03,3.5458]
[1727909175113,1.12502,141.05,141.04,3.5456]
[1727909179414,1.12502,141.05,141.01,17.01]
[1727909179609,1.12502,141.05,141.02,5.82]
[1727909180311,1.12502,141.05,141.04,3.5456]
[1727909181516,1.12502,141.05,141.04,14.4356]
[1727909189417,1.0,141.07,141.04,14.4356]
[1727909189627,1.0,141.09,141.06,10.89]
[1727909189916,1.0,141.09,141.07,5.82]
[1727909190117,1.0,141.09,141.08,10.89]
[1727909190312,1.0,141.09,141.08,14.4346]
[1727909192225,1.0,141.12,141.1,10.89]
[1727909192519,1.0,141.14,141.11,10.89]
[1727909192725,1.0,141.14,141.13,14.4333]
[1727909193516,1.0,141.14,141.13,3.5433]
[1727909197019,4.5432,141.14,141.1,5.8]
[1727909197213,1.0,141.14,141.12,3.5435]
[1727909200017,1.0,141.14,141.13,3.5433]
[1727909200215,1.0,141.14,141.13,20.5533]
[1727909201827,1.0,141.14,141.13,24.08823303]
[1727909207426,1.12502,141.17,141.16,3.5426]
[1727909207633,1.12502,141.17,141.16,20.5526]
[1727909215632,1.12502,141.17,141.16,14.4226]
[1727909219240,1.12518,141.19,141.18,3.5421]
[1727909219438,1.0,141.22,141.18,16.68]
[1727909219639,1.0,141.22,141.21,14.4213]
[1727909221645,1.0,141.22,141.18,5.8]
[1727909221941,4.5411,141.22,141.2,10.88]
[1727909222242,1.0,141.22,141.2,10.88]
[1727909222428,1.0,141.22,141.2,14.4214]
[1727909225746,1.0,141.22,141.21,10.88]
[1727909227343,1.0,141.22,141.18,10.88]
[1727909227846,11.88,141.22,141.17,10.88]
[1727909228335,3.5417,141.2,141.18,10.88]
[1727909228536,1.0,141.22,141.19,10.88]
[1727909229030,3.5415,141.21,141.19,14.4217]
[1727909229352,11.88,141.22,141.18,10.88]
[1727909229642,3.5414,141.21,141.18,10.88]
[1727909229839,3.5414,141.21,141.19,10.88]
[1727909230234,1.0,141.22,141.2,3.5415]
[1727909230439,1.0,141.22,141.2,14.4215]
[1727909230830,4.5411,141.22,141.2,14.4215]
[1727909232138,4.5411,141.22,141.19,10.88]
[1727909232139,1.0,141.22,141.19,10.88]
[1727909232341,3.5414,141.21,141.19,14.4217]
[1727909234752,4.5412,141.22,141.19,14.4217]
[1727909235648,3.5413,141.21,141.2,10.88]
[1727909236047,1.0,141.22,141.19,10.88]
[1727909236245,1.0,141.22,141.13,1.4199]
[1727909236450,10.88,141.2,141.15,10.88]
[1727909236946,10.88,141.19,141.14,10.88]
[1727909237258,10.88,141.17,141.11,5.90502]
[1727909237462,10.88,141.16,141.11,11.00502]
[1727909237750,4.79794614,141.19,141.12,10.88]
[1727909237751,10.88,141.17,141.12,10.88]
[1727909237957,10.88,141.17,141.13,3.5432]
[1727909238254,10.88,141.17,141.12,10.88]
[1727909238451,10.88,141.17,141.12,14.4235]
[1727909239153,10.88,141.17,141.12,10.88]
[1727909239154,3.5432,141.14,141.12,10.88]
[1727909239354,10.88,141.16,141.11,14.54872]
[1727909239752,3.5433,141.14,141.11,14.54872]
[1727909240756,10.88,141.14,141.11,0.12502]
[1727909240946,10.88,141.12,141.11,0.12502]
[1727909241355,14.4236,141.12,141.11,0.12502]
[1727909242457,3.5436,141.12,141.11,0.12502]
[1727909242756,12.3064,141.13,141.11,0.12502]
[1727909242757,4.9699,141.13,141.11,0.12502]
[1727909243849,1.4264,141.13,141.11,0.12502]
[1727909244363,12.3064,141.13,141.11,0.12502]
[1727909244545,12.3064,141.13,141.07,5.8]
[1727909244546,10.88,141.12,141.07,5.8]
[1727909244752,10.88,141.1,141.05,11.00502]
[1727909245156,3.5447,141.08,141.05,11.00502]
[1727909245375,5.8,141.12,141.05,0.12502]
[1727909245376,10.88,141.09,141.05,0.12502]
[1727909245660,3.5441,141.11,141.08,14.4245]
[1727909245849,1.4264,141.13,141.1,10.88]
[1727909246052,2.6628,141.15,141.1,10.88]
[1727909246053,8.4628,141.15,141.1,10.88]
[1727909246247,3.5432,141.14,141.11,3.5437]
[1727909246457,8.4628,141.15,141.1,10.88]
[1727909246862,3.5433,141.14,141.11,3.5437]
[1727909247458,3.5436,141.12,141.09,10.88]
[1727909247847,3.5436,141.12,141.09,14.4242]
[1727909248963,10.88,141.13,141.08,10.88]
[1727909249260,12.2663,141.13,141.08,10.88]
[1727909249460,3.5439,141.11,141.08,14.4244]
[1727909250065,3.5436,141.12,141.09,3.5443]
[1727909251663,3.5436,141.12,141.09,14.4243]
[1727909252065,2.6628,141.15,141.11,10.88]
[1727909252269,3.5432,141.14,141.12,10.88]
[1727909252459,16.80502,141.17,141.13,10.88]
[1727909252460,5.92502,141.17,141.13,10.88]
[1727909252860,3.5427,141.16,141.13,14.4231]
[1727909254863,3.5429,141.15,141.13,10.88]
[1727909255167,16.80502,141.17,141.12,10.88]
[1727909255374,10.88,141.14,141.1,10.88]
[1727909256063,3.544,141.11,141.09,10.88]
[1727909256867,5.92502,141.17,141.09,10.88]
[1727909257068,3.5434,141.13,141.1,10.88]
[1727909257461,10.88,141.14,141.1,14.4239]
[1727909257666,22.94502,141.17,141.1,3.5439]
[1727909258469,22.94502,141.17,141.05,1.50602]
[1727909258470,17.02,141.15,141.05,1.50602]
[1727909258675,1.3918,141.14,141.06,5.8]
[1727909258879,3.544,141.11,141.08,3.5444]
[1727909259372,3.5441,141.1,141.08,3.5444]
[1727909259670,5.8,141.13,141.09,3.5442]
[1727909259965,5.8,141.13,141.06,22.82]
[1727909260174,3.5437,141.12,141.08,17.02]
[1727909260367,3.5437,141.12,141.09,3.5441]
[1727909262868,4.9349,141.14,141.11,3.5436]
[1727909263067,5.8,141.16,141.08,17.02]
[1727909263377,5.8,141.16,141.05,7.17834587]
[1727909263568,17.02,141.15,141.05,0.12502]
[1727909263770,17.02,141.13,141.05,0.12502]
[1727909263964,3.545,141.07,141.05,0.12502]
[1727909265178,3.5447,141.08,141.05,3.67032]
[1727909268472,3.5447,141.08,141.06,3.5451]
[1727909268780,8.4647,141.12,141.05,0.12502]
[1727909268980,3.63356904,141.11,141.06,3.5449]
[1727909269279,20.65356904,141.11,141.05,0.12502]
[1727909269970,3.545,141.07,141.05,0.12502]
[1727909271578,3.5451,141.06,141.05,0.12502]
[1727909272170,3.5461,141.02,140.99,0.12502]
[1727909272370,7.1714,141.08,140.99,0.12502]
[1727909272371,17.02,141.05,140.99,0.12502]
[1727909272573,5.78,141.04,140.99,0.12502]
[1727909272769,3.5466,141.0,140.99,0.12502]
[1727909276877,1.3177,141.06,140.99,0.12502]
[1727909277079,1.3914,141.08,141.01,17.02]
[1727909277280,17.02,141.1,141.01,26.29339253]
[1727909277487,9.53858904,141.11,141.03,17.02]
[1727909277884,5.90502,141.11,141.03,17.02]
[1727909278185,3.5445,141.09,141.05,3.5452]
[1727909278574,3.5446,141.08,141.05,3.5452]
[1727909280488,3.5445,141.09,141.03,17.02]
[1727909281080,3.5452,141.06,141.01,22.8]
[1727909281279,17.02,141.1,141.01,17.02]
[1727909281480,17.02,141.07,141.01,3.5462]
[1727909281787,17.02,141.02,140.99,0.12502]
[1727909281986,17.02,141.0,140.99,0.12502]
[1727909282185,17.02,141.0,140.94,1.001]
[1727909282186,3.5467,141.0,140.94,1.001]
[1727909282482,5.78,140.99,140.94,1.001]
[1727909282689,5.78,140.99,140.97,3.5472]
[1727909282882,5.78,141.01,140.94,18.021]
[1727909283087,5.78,141.02,140.97,3.5471]
[1727909283287,5.78,141.02,140.96,1.001]
[1727909283288,3.5464,141.01,140.96,1.001]
[1727909283688,3.5464,141.01,140.98,3.547]
[1727909284882,22.8,141.04,140.96,1.001]
[1727909285101,5.78,141.04,140.97,17.02]
[1727909285588,3.546,141.03,141.0,3.5465]
[1727909286695,9.326,141.03,141.0,3.5465]
[1727909287695,5.78,141.03,141.0,3.5464]
[1727909288590,5.78,141.04,141.0,3.5464]
[1727909288990,3.5459,141.03,141.0,3.5464]
[1727909292390,5.90502,141.05,141.02,3.546]
[1727909292702,5.90502,141.05,140.97,17.02]
[1727909293491,3.5462,141.02,140.99,3.5467]
[1727909293885,3.5462,141.02,140.96,6.781]
[1727909294090,3.5457,141.04,141.01,3.5463]
[1727909294999,3.5459,141.03,140.96,6.781]
[1727909295203,3.5459,141.03,141.0,3.5464]
[1727909295587,17.02,141.02,140.98,3.47704446]
[1727909295788,9.3265,141.01,140.98,7.02394446]
[1727909295997,9.3265,141.01,140.98,3.5469]
[1727909297215,3.5465,141.01,140.98,3.5469]
[1727909298406,5.78,141.04,140.96,1.001]
[1727909298602,22.8,141.04,140.96,1.001]
[1727909299196,3.5463,141.01,140.98,3.547]
[1727909300806,17.02,141.02,140.96,1.001]
[1727909301006,17.02,141.02,140.96,4.5485]
[1727909302105,3.547,140.99,140.96,4.5485]
[1727909303711,3.5473,140.97,140.96,1.001]
[1727909304197,3.5478,140.95,140.94,1.001]
[1727909304397,17.02,140.98,140.94,1.001]
[1727909304613,2.6902,140.99,140.94,1.001]
[1727909304908,5.78,141.0,140.94,1.001]
[1727909305504,3.5469,140.99,140.96,3.5475]
[1727909307806,3.5467,141.0,140.97,3.5473]
[1727909308007,5.78,141.03,140.94,18.021]
[1727909308308,19.7624,141.04,140.94,18.021]
[1727909308309,5.78,141.04,140.96,17.02]
[1727909308514,9.3257,141.04,141.01,3.5462]
[1727909309013,3.5461,141.02,140.99,3.5468]
[1727909310115,3.5461,141.02,141.0,3.5466]
[1727909311310,3.5464,141.01,140.98,3.5469]
[1727909311609,3.5464,141.01,140.96,24.2087]
[1727909312013,3.5464,141.01,140.96,7.1887]
[1727909312407,3.5464,141.01,140.98,3.547]
[1727909314020,3.5472,140.98,140.94,1.001]
[1727909314321,22.8,141.0,140.94,1.001]
[1727909314820,22.8,141.0,140.96,3.5474]
[1727909314821,3.547,140.99,140.96,3.5474]
[1727909315203,22.8,141.0,140.94,1.001]
[1727909315204,20.5300649,141.02,140.94,1.001]
[1727909315520,22.8,141.03,140.95,5.78]
[1727909316011,1.3233,141.04,140.96,17.02]
[1727909316012,7.1033,141.04,140.96,17.02]
[1727909316208,7.1033,141.04,140.96,21.1885]
[1727909316410,3.5461,141.02,140.96,21.1885]
[1727909316909,3.5461,141.02,140.99,3.5467]
[1727909317307,7.1033,141.04,140.97,3.52972297]
[1727909317508,7.1033,141.04,141.01,3.5462]
[1727909317509,9.3256,141.04,141.01,3.5462]
[1727909318014,17.14502,141.05,140.97,3.52972297]
[1727909318214,3.67052,141.05,141.02,3.546]
[1727909318416,0.12502,141.05,140.99,5.78]
[1727909318816,3.5456,141.04,140.99,5.78]
[1727909319011,3.5456,141.04,140.97,5.78]
[1727909319012,17.02,141.04,140.97,5.78]
[1727909319514,17.02,141.04,140.98,3.547]
[1727909319515,3.5465,141.01,140.98,3.547]
[1727909320108,3.5465,141.01,140.97,5.78]
[1727909320308,3.5467,141.0,140.96,4.1685]
[1727909320509,3.5467,141.0,140.94,1.001]
[1727909320510,17.02,141.02,140.95,5.78]
[1727909320711,3.547,140.99,140.96,3.5475]
[1727909323224,17.02,141.0,140.94,1.001]
[1727909323723,3.5474,140.97,140.94,4.549]
[1727909325122,3.5478,140.95,140.94,1.001]
[1727909325626,17.02,140.96,140.94,1.001]
[1727909325921,18.4536,140.98,140.94,1.001]
[1727909326316,3.5477,140.96,140.94,1.001]
[1727909328327,3.5477,140.96,140.94,4.5491]
[1727909328730,3.5474,140.97,140.94,4.5491]
[1727909329928,2.8393,140.99,140.94,1.001]
[1727909329929,3.5469,140.99,140.94,1.001]
[1727909331427,3.5469,140.99,140.96,3.5474]
[1727909331934,3.5469,140.99,140.97,3.5472]
[1727909335139,17.02,140.98,140.94,1.001]
[1727909335339,17.02,140.96,140.94,1.001]
[1727909335737,3.5478,140.95,140.94,1.001]
[1727909337241,20.5678,140.95,140.94,1.001]
[1727909339642,17.02,140.96,140.94,1.001]
[1727909340246,3.5478,140.95,140.94,1.001]
[1727909340852,20.5678,140.95,140.94,1.001]
[1727909341150,20.5678,140.95,140.91,1.001]
[1727909341151,17.02,140.95,140.91,1.001]
[1727909341354,3.5486,140.92,140.91,1.001]
[1727909341647,20.5686,140.92,140.91,1.001]
[1727909342453,17.02,140.92,140.91,1.001]
[1727909342856,5.78,140.94,140.91,1.001]
[1727909342857,22.8,140.94,140.91,1.001]
[1727909343256,22.8,140.94,140.92,3.5485]
[1727909344165,22.8,140.94,140.93,3.5483]
[1727909344460,22.8,140.94,140.91,1.001]
[1727909344646,22.8,140.94,140.92,3.5485]
[1727909345057,22.8,140.94,140.91,4.5497]
[1727909345252,22.8,140.94,140.91,1.001]
[1727909345253,17.02,140.92,140.91,1.001]
[1727909347555,17.02,140.92,140.91,4.5498]
[1727909347970,22.8,140.94,140.91,1.001]
[1727909348167,22.8,140.94,140.93,3.5483]
[1727909348362,22.8,140.94,140.91,1.001]
[1727909348551,22.8,140.94,140.91,4.5497]
[1727909348756,22.8,140.94,140.91,1.001]
[1727909349158,22.8,140.94,140.93,3.5483]
[1727909349859,17.02,140.94,140.93,3.5483]
[1727909351761,2.781,140.97,140.91,1.001]
[1727909351955,5.78,140.97,140.91,1.001]
[1727909352359,5.78,140.97,140.95,3.5477]
[1727909353075,5.78,140.97,140.91,1.001]
[1727909353362,17.02,140.98,140.91,1.001]
[1727909353566,0.12502,140.99,140.93,17.02]
[1727909353770,0.12502,140.99,140.98,3.5471]
[1727909355456,0.12502,141.05,141.03,3.5456]
[1727909356966,0.12502,141.05,140.98,1.397]
[1727909357165,0.12502,141.05,141.02,3.546]
[1727909357365,0.12502,141.05,140.98,1.397]
[1727909358272,0.12502,141.05,141.03,3.5458]
[1727909358463,0.12502,141.05,140.97,17.02]
[1727909358667,17.02,141.04,140.95,1.3626]
[1727909358865,17.02,141.04,141.01,3.5461]
[1727909360771,17.02,141.04,140.96,1.2955]
[1727909361075,0.12502,141.05,141.04,3.5456]
[1727909361076,17.14502,141.05,141.04,3.5456]
[1727909362371,17.14502,141.05,141.03,3.5457]
[1727909364471,17.02,141.04,140.94,4.9007949]
[1727909364685,17.02,141.01,140.94,4.9007949]
[1727909365078,17.02,141.01,140.99,3.5467]
[1727909365279,17.02,141.03,140.94,21.9207949]
[1727909366081,17.02,141.03,141.0,3.5464]
[1727909368185,17.02,141.03,140.94,21.9207949]
[1727909368392,17.02,141.03,141.01,3.5463]
[1727909369689,17.02,141.03,140.96,5.76]
[1727909370480,17.02,141.03,141.01,3.5462]
[1727909371984,17.14502,141.05,141.03,3.5456]
[1727909372295,17.14502,141.05,140.98,17.02]
[1727909372490,17.14502,141.05,141.02,3.5459]
[1727909373189,17.14502,141.05,140.98,17.02]
[1727909374089,17.14502,141.05,141.02,3.546]
[1727909375496,17.14502,141.05,141.03,3.5457]
[1727909375888,17.14502,141.05,140.99,1.3268]
[1727909376193,17.14502,141.05,141.03,3.5456]
[1727909380195,17.14502,141.05,140.99,2.6917]
[1727909381398,17.02,141.03,140.97,5.76]
[1727909382284,20.566,141.03,140.99,3.5467]
[1727909382691,24.16904637,141.03,140.99,3.5467]
[1727909382889,17.02,141.03,140.99,3.5467]
[1727909383102,20.51076893,141.03,140.99,3.5467]
[1727909383400,3.5461,141.02,140.99,3.5467]
[1727909383910,3.5464,141.01,140.98,3.547]
[1727909384212,3.5464,141.01,140.95,2.7907]
[1727909384213,17.02,141.0,140.95,2.7907]
[1727909386405,17.02,141.0,140.98,3.5469]
[1727909391215,20.5666,141.0,140.98,3.5469]
[1727909391603,10.9,140.99,140.98,3.5469]
[1727909394212,10.9,141.0,140.99,3.5466]
[1727909394402,10.9,141.01,140.96,10.9]
[1727909395402,10.9,141.01,141.0,3.5464]
[1727909395606,1.50652,141.05,140.97,10.9]
[1727909395807,10.9,141.02,141.01,3.5462]
[1727909396209,10.9,141.03,141.01,3.5462]
[1727909397512,10.9,141.03,140.97,5.76]
[1727909397513,0.12502,141.05,140.99,10.9]
[1727909397809,10.9,141.04,140.99,10.9]
[1727909398209,10.9,141.04,141.03,3.5457]
[1727909402314,10.9,141.04,141.0,3.5464]
[1727909402518,10.9,141.01,141.0,3.5464]
[1727909402708,10.9,141.02,140.97,16.66]
[1727909402903,10.9,141.02,141.01,3.5463]
[1727909404313,10.9,141.02,140.97,5.76]
[1727909404520,0.12502,141.05,140.97,5.76]
[1727909404521,10.9,141.0,140.97,5.76]
[1727909404709,10.9,141.0,140.99,3.5468]
[1727909404910,10.9,141.0,140.97,5.76]
[1727909405819,10.9,141.0,140.98,3.5468]
[1727909406919,0.12502,141.05,140.98,10.9]
[1727909407217,0.12502,141.05,141.01,10.9]
[1727909407414,3.67032,141.05,141.03,3.5458]
[1727909408022,14.57032,141.05,141.03,3.5458]
[1727909408725,0.12502,141.05,141.04,3.5456]
[1727909410117,0.12502,141.11,141.04,17.01]
[1727909410319,0.12502,141.11,141.06,17.01]
[1727909410929,0.12502,141.11,141.1,3.5441]
[1727909411116,1.12502,141.17,141.1,17.01]
[1727909411314,1.12502,141.17,141.1,20.55017317]
[1727909411621,1.12502,141.17,141.09,5.76]
[1727909411622,17.01,141.16,141.09,5.76]
[1727909411927,17.01,141.16,141.05,0.12502]
[1727909411928,22.77,141.16,141.07,5.76]
[1727909412128,3.5432,141.14,141.1,3.5439]
[1727909413518,3.5432,141.14,141.07,5.76]
[1727909413519,3.5436,141.12,141.07,5.76]
[1727909413725,20.5536,141.12,141.07,5.76]
[1727909415425,20.5536,141.12,141.08,3.5445]
[1727909416321,20.9529,141.15,141.07,5.76]
[1727909416515,3.5431,141.14,141.07,5.76]
[1727909416918,3.5431,141.14,141.1,3.5439]
[1727909417919,3.5437,141.12,141.07,5.76]
[1727909418830,3.5437,141.12,141.08,3.5443]
[1727909419134,3.5438,141.11,141.08,3.5443]
[1727909420123,3.5437,141.12,141.09,3.5443]
[1727909420524,20.9529,141.15,141.07,5.76]
[1727909421437,3.5432,141.14,141.07,5.76]
[1727909422133,3.5432,141.14,141.1,3.5439]
[1727909423434,3.5433,141.13,141.1,3.5439]
[1727909424629,3.5433,141.13,141.07,5.76]
[1727909424840,26.6929,141.15,141.07,5.76]
[1727909425435,26.6929,141.15,141.11,3.5436]
[1727909425637,17.01,141.16,141.08,17.01]
[1727909425831,4.66752,141.17,141.15,0.5513]
[1727909426129,4.66752,141.17,141.11,5.74]
[1727909426130,1.12502,141.17,141.11,5.74]
[1727909426635,1.12502,141.17,141.15,3.5427]
[1727909426936,3.5431,141.14,141.11,3.5438]
[1727909427133,3.5431,141.14,141.08,25.4578]
[1727909427431,3.5431,141.14,141.08,8.4478]
[1727909427631,3.5429,141.15,141.12,3.5434]
[1727909427838,1.12502,141.17,141.1,17.01]
[1727909428330,1.12502,141.17,141.14,3.5429]
[1727909428632,1.12502,141.17,141.1,20.51481473]
[1727909428830,3.5426,141.16,141.14,3.543]
[1727909429245,1.12502,141.17,141.14,3.543]
[1727909429634,4.66742,141.17,141.14,3.543]
[1727909430334,3.5429,141.15,141.13,3.5433]
[1727909430537,3.5429,141.15,141.08,25.4578]
[1727909431041,3.5429,141.15,141.12,3.5434]
[1727909433445,18.13502,141.17,141.15,3.5426]
[1727909433446,1.12502,141.17,141.15,3.5426]
[1727909433742,1.12502,141.17,141.11,17.01]
[1727909434334,4.66742,141.17,141.14,3.5429]
[1727909434938,3.5427,141.16,141.13,3.5433]
[1727909435846,1.12502,141.17,141.1,3.62707164]
[1727909436040,4.66732,141.17,141.09,17.01]
[1727909436344,4.66732,141.17,141.14,3.5429]
[1727909438448,3.5428,141.15,141.11,3.5437]
[1727909438643,18.13502,141.17,141.08,2.7078]
[1727909438948,18.13502,141.17,141.09,3.5443]
[1727909438949,3.5438,141.12,141.09,3.5443]
[1727909439142,17.01,141.15,141.05,18.44372]
[1727909439456,17.01,141.15,141.05,24.18372]
[1727909439639,3.5436,141.12,141.09,3.5441]